bitfinex-derivatives/quotes_ETHF0:USTF0_20250606
["timestamp","ask_amount","ask_price","bid_price","bid_amount"]
[1749233919731,0.80043,2496.8,2496.7,0.6546]
[1749233919933,1.70804706,2496.8,2496.7,0.6546]
[1749233921232,0.80049,2496.7,2496.6,0.80049]
[1749233921435,1.70810706,2496.7,2496.6,0.80049]
[1749233922136,0.80049,2496.6,2496.5,3.2078]
[1749233922337,1.73203653,2496.6,2496.5,4.00832]
[1749233926737,1.73203653,2496.6,2496.5,0.80052]
[1749233927731,0.93154653,2496.6,2496.5,0.80052]
[1749233928641,1.73203653,2496.6,2496.5,0.80052]
[1749233929041,0.93154653,2496.6,2496.5,0.80052]
[1749233930741,1.00288004,2496.6,2496.5,0.80052]
[1749233932143,1.80337004,2496.6,2496.5,0.80052]
[1749233935245,1.00288004,2496.6,2496.5,0.80052]
[1749233935845,1.80337004,2496.6,2496.5,0.80052]
[1749233936044,1.00288004,2496.6,2496.5,0.80052]
[1749233936542,1.80337004,2496.6,2496.5,0.80052]
[1749233938045,1.00288004,2496.6,2496.5,0.80052]
[1749233938542,0.07133351,2496.6,2496.5,4.00832]
[1749233941845,0.00600962,2497.4,2497.0,2.00086]
[1749233942056,0.00600962,2497.4,2497.2,0.80027]
[1749233942057,2.41674101,2497.3,2497.2,0.80027]
[1749233942246,0.93474101,2497.3,2497.2,0.49998627]
[1749233942449,0.00600962,2497.4,2497.3,0.80027]
[1749233943749,0.00600962,2497.4,2497.3,5.80027]
[1749233945349,0.00600962,2497.4,2497.3,0.80027]
[1749233946346,1.3581,2498.0,2497.9,0.80008]
[1749233946552,0.96195577,2498.0,2497.9,0.80008]
[1749233946949,3.2078,2498.4,2497.9,4.789]
[1749233947157,0.6595,2498.6,2498.5,0.79988]
[1749233947355,0.96067133,2498.6,2498.5,0.79988]
[1749233947853,4.79500962,2498.8,2498.7,0.79982]
[1749233948050,0.96650372,2498.8,2498.7,0.79982]
[1749233948249,0.00600962,2498.8,2498.7,0.79982]
[1749233951948,0.00600962,2498.8,2498.7,4.00762]
[1749233953154,0.00600962,2498.8,2498.7,8.79462]
[1749233953461,8.691,2499.5,2499.3,0.79961]
[1749233953652,8.691,2499.5,2498.8,1.99946]
[1749233953653,0.79965,2499.3,2499.1,0.79967]
[1749233954052,0.79966,2499.2,2499.1,0.79967]
[1749233954251,1.31580962,2499.4,2499.0,3.2078]
[1749233954452,0.79966,2499.3,2499.1,0.79966]
[1749233954652,6.10280962,2499.4,2499.0,3.2078]
[1749233954861,0.79979,2498.8,2498.7,8.7946]
[1749233955056,6.78534,2499.0,2498.4,3.2078]
[1749233955256,0.79982,2498.8,2498.4,3.2078]
[1749233955561,0.7998,2498.8,2498.7,0.7998]
[1749233956068,0.6742,2498.9,2498.8,0.79979]
[1749233957360,1.47396,2498.9,2498.8,0.79979]
[1749233960066,0.6742,2498.9,2498.8,0.79979]
[1749233960264,0.74553351,2498.9,2498.8,0.79979]
[1749233960468,0.07133351,2498.9,2498.8,0.79979]
[1749233960765,0.87109351,2498.9,2498.8,0.79979]
[1749233961461,0.79985,2498.7,2498.6,0.79981]
[1749233962060,7.15441,2498.8,2498.4,3.2078]
[1749233962259,0.79988,2498.5,2498.4,3.2078]
[1749233962455,0.79992,2498.4,2498.3,0.80593962]
[1749233962767,2.11412,2498.4,2498.3,0.80593962]
[1749233963458,0.6371,2498.6,2498.5,0.79988]
[1749233963764,1.43695,2498.6,2498.5,0.79988]
[1749233964165,0.79992,2498.5,2498.4,0.79989]
[1749233965868,1.43697,2498.6,2498.5,0.79988]
[1749233966168,0.79992,2498.5,2498.4,0.7999]
[1749233967868,0.79992,2498.5,2498.4,0.79992]
[1749233968170,0.79992,2498.4,2498.3,0.00600962]
[1749233968466,0.79992,2498.4,2498.3,0.80595962]
[1749233968667,0.79992,2498.4,2498.3,0.00600962]
[1749233968963,0.79992,2498.4,2498.3,0.80595962]
[1749233969468,1.76159625,2498.4,2498.3,0.80595962]
[1749233970570,1.43697,2498.6,2498.5,0.79988]
[1749233970762,2.3984982,2498.6,2498.5,0.79988]
[1749233974171,0.79205976,2498.4,2498.3,0.00600962]
[1749233974465,6.2384282,2498.5,2498.3,0.00600962]
[1749233974670,0.9615282,2498.4,2498.3,0.80595962]
[1749233975269,1.7614482,2498.4,2498.3,0.80595962]
[1749233976174,0.9615282,2498.4,2498.3,0.80595962]
[1749233976472,1.7614482,2498.4,2498.3,0.80595962]
[1749233977075,0.9615282,2498.4,2498.3,0.80595962]
[1749233977472,1.7614482,2498.4,2498.3,0.80595962]
[1749233977671,0.9615282,2498.4,2498.3,0.80595962]
[1749233977966,0.96448511,2498.5,2498.4,0.79992]
[1749233978171,0.96447727,2498.5,2498.4,0.79992]
[1749233978475,1.76435727,2498.5,2498.4,0.79992]
[1749233980671,0.96447727,2498.5,2498.4,0.79992]
[1749233981971,0.07133351,2498.6,2498.5,0.79988]
[1749233982176,1.0356332,2498.6,2498.5,4.00768]
[1749233982378,1.0356332,2498.6,2498.5,4.65348]
[1749233984574,0.07133351,2498.6,2498.5,4.65348]
[1749233987475,1.03636749,2498.6,2498.5,4.65348]
[1749233987678,1.03636749,2498.6,2498.5,0.79988]
[1749233988272,1.83621749,2498.6,2498.5,0.79988]
[1749233988470,0.79992,2498.4,2498.3,0.00600962]
[1749233988682,1.76495398,2498.4,2498.3,0.00600962]
[1749233989572,0.96503398,2498.4,2498.3,0.80595962]
[1749233989777,0.07133351,2498.6,2498.3,0.80595962]
[1749233989778,1.76669907,2498.5,2498.3,0.00600962]
[1749233990078,0.96680907,2498.4,2498.3,0.80595962]
[1749233993574,0.96680907,2498.4,2498.3,2.13525962]
[1749233997380,0.07133351,2498.6,2498.5,0.79988]
[1749233997680,1.0367819,2498.6,2498.5,0.79988]
[1749234000884,1.0367819,2498.6,2498.5,4.00768]
[1749234001186,0.07133351,2498.6,2498.5,5.33948]
[1749234002185,0.07133351,2498.6,2498.5,4.00768]
[1749234002684,1.03728052,2498.6,2498.5,4.00768]
[1749234002980,1.83713052,2498.6,2498.5,4.00768]
[1749234003181,1.72458052,2498.6,2498.5,4.00768]
[1749234006584,1.03728052,2498.6,2498.5,5.38008]
[1749234007383,1.03728052,2498.6,2498.5,4.00768]
[1749234010889,1.03772255,2498.6,2498.5,4.00768]
[1749234012500,0.79992,2498.4,2498.3,0.80592962]
[1749234012793,4.44122238,2498.5,2498.4,0.79992]
[1749234012989,4.44123654,2498.5,2498.4,0.79992]
[1749234013186,3.64132654,2498.5,2498.4,0.79992]
[1749234013387,2.25192654,2498.5,2498.4,0.79992]
[1749234014195,3.05181654,2498.5,2498.4,0.79992]
[1749234014391,3.61512654,2498.5,2498.4,0.79992]
[1749234014995,4.41501654,2498.5,2498.4,0.79992]
[1749234016789,2.25192654,2498.5,2498.4,0.79992]
[1749234018701,3.05181654,2498.5,2498.4,0.79992]
[1749234020204,2.25192654,2498.5,2498.4,0.79992]
[1749234020502,3.05181654,2498.5,2498.4,0.79992]
[1749234021202,3.12315005,2498.5,2498.4,0.79992]
[1749234021504,3.1221586,2498.5,2498.4,0.79992]
[1749234022400,2.3222686,2498.5,2498.4,0.79992]
[1749234023602,3.1221586,2498.5,2498.4,0.79992]
[1749234024199,0.79992,2498.4,2498.3,0.00600962]
[1749234024399,0.96553509,2498.4,2498.3,0.80595962]
[1749234025600,1.76545509,2498.4,2498.3,0.80595962]
[1749234026819,0.96553509,2498.4,2498.3,0.80595962]
[1749234027006,1.76545509,2498.4,2498.3,0.80595962]
[1749234027710,3.08325509,2498.4,2498.3,0.80595962]
[1749234030508,0.96553509,2498.4,2498.3,0.80595962]
[1749234031412,0.96553509,2498.4,2498.3,2.79675962]
[1749234031908,0.07133351,2498.5,2498.3,1.99680962]
[1749234032106,0.99265769,2498.4,2498.3,0.00600962]
[1749234032607,0.80008,2498.0,2497.9,0.80006]
[1749234032803,0.80008,2497.9,2497.8,4.00789]
[1749234033009,2.47383769,2497.9,2497.8,4.00789]
[1749234033209,2.47383769,2497.9,2497.8,3.2078]
[1749234033505,1.67375769,2497.9,2497.8,0.80012]
[1749234035021,2.47383769,2497.9,2497.8,0.80012]
[1749234036020,0.80014,2497.8,2497.7,0.80014]
[1749234036320,1.79279769,2497.8,2497.7,0.80014]
[1749234036515,0.99265769,2497.8,2497.7,0.80014]
[1749234037818,0.99265769,2497.8,2497.7,2.79304]
[1749234038023,0.00600962,2498.1,2498.0,0.80005]
[1749234038226,0.99805909,2498.1,2498.0,0.80005]
[1749234038820,0.99805909,2498.1,2498.0,2.10085]
[1749234039818,1.79807909,2498.1,2498.0,2.10085]
[1749234040024,0.99805909,2498.1,2498.0,2.10085]
[1749234040322,1.79807909,2498.1,2498.0,2.10085]
[1749234040920,0.99805909,2498.1,2498.0,2.10085]
[1749234041825,1.79807909,2498.1,2498.0,2.10085]
[1749234042023,1.79807909,2498.1,2498.0,0.80005]
[1749234042221,0.80005,2498.0,2497.9,1.44897]
[1749234042421,1.79209947,2498.0,2497.9,1.44897]
[1749234042723,0.99204947,2498.0,2497.9,1.44897]
[1749234044028,1.79209947,2498.0,2497.9,1.44897]
[1749234044341,0.99204947,2498.0,2497.9,1.44897]
[1749234045431,1.79209947,2498.0,2497.9,1.44897]
[1749234045624,0.99204947,2498.0,2497.9,1.44897]
[1749234047021,1.79209947,2498.0,2497.9,1.44897]
[1749234047222,0.80008,2497.9,2497.8,3.2078]
[1749234047422,0.80015,2497.7,2497.6,0.80616962]
[1749234047930,1.79175663,2497.7,2497.6,0.80616962]
[1749234057839,0.99160663,2497.7,2497.6,0.80616962]
[1749234058539,0.6861,2497.9,2497.8,0.80012]
[1749234058836,1.67751673,2497.9,2497.8,0.80012]
[1749234060633,0.99141673,2497.9,2497.8,0.80012]
[1749234060841,0.99141673,2497.9,2497.8,4.00792]
[1749234061139,0.07133351,2498.0,2497.9,0.80008]
[1749234061339,1.06308344,2498.0,2497.9,2.80128]
[1749234062340,1.86313344,2498.0,2497.9,1.44688]
[1749234062633,1.06308344,2498.0,2497.9,1.44688]
[1749234063539,1.86313344,2498.0,2497.9,1.44688]
[1749234064244,1.06308344,2498.0,2497.9,1.44688]
[1749234064439,1.86313344,2498.0,2497.9,1.44688]
[1749234066543,1.06308344,2498.0,2497.9,1.44688]
[1749234066751,1.86313344,2498.0,2497.9,1.44688]
[1749234067246,6.27109344,2498.0,2497.6,0.00600962]
[1749234067449,0.80015,2497.7,2497.6,0.00600962]
[1749234067646,4.00795,2497.7,2497.6,0.00600962]
[1749234067945,9.99969993,2497.7,2497.6,0.00082108]
[1749234068139,0.80031,2497.3,2497.2,0.8003]
[1749234068337,0.80031,2497.2,2497.1,4.00812]
[1749234068543,2.42885993,2497.2,2497.1,4.00812]
[1749234071047,2.43056839,2497.2,2497.1,4.00812]
[1749234075258,0.99345839,2497.2,2497.1,4.00812]
[1749234075556,4.774,2497.5,2497.4,0.80024]
[1749234075857,0.99098356,2497.5,2497.4,0.80024]
[1749234076154,1.79119356,2497.5,2497.4,0.80024]
[1749234081163,1.86252707,2497.5,2497.4,0.80024]
[1749234081362,0.80034,2497.2,2497.1,0.80033]
[1749234081655,0.80037,2497.0,2496.9,0.00600962]
[1749234081954,4.9996952,2497.0,2496.9,0.00600962]
[1749234082160,13.2012252,2497.0,2496.1,4.4949]
[1749234082351,0.80059,2496.4,2496.3,0.80056]
[1749234082547,1.79176282,2496.4,2496.3,0.80056]
[1749234083467,0.80056,2496.5,2496.4,0.80053]
[1749234083657,1.79070343,2496.5,2496.4,0.80053]
[1749234083858,0.99014343,2496.5,2496.4,0.80053]
[1749234084062,0.00600962,2496.6,2496.5,0.80053]
[1749234084361,0.00600962,2496.6,2496.5,2.74593]
[1749234087152,0.00600962,2496.6,2496.5,3.43713]
[1749234088161,0.00600962,2496.6,2496.5,2.12083]
[1749234088462,0.00600962,2496.6,2496.5,1.42963]
[1749234089160,0.80650962,2496.6,2496.5,1.42963]
[1749234089861,0.00600962,2496.6,2496.5,1.42963]
[1749234095567,0.07734313,2496.6,2496.5,1.42963]
[1749234097064,0.07734313,2496.6,2496.5,2.70223]
[1749234100069,0.87784313,2496.6,2496.5,0.80053]
[1749234100269,1.52234313,2496.6,2496.5,0.80053]
[1749234100874,0.80053,2496.5,2496.4,3.2078]
[1749234101065,0.80063,2496.2,2496.1,1.44043962]
[1749234101267,0.80063,2496.2,2496.1,0.80663962]
[1749234101967,0.80063,2496.2,2496.1,0.00600962]
[1749234102165,1.77934872,2496.2,2496.1,0.00600962]
[1749234102371,2.43604872,2496.2,2496.1,0.00600962]
[1749234102671,2.43604872,2496.2,2496.1,0.80666962]
[1749234103265,2.43604872,2496.2,2496.1,0.00600962]
[1749234104373,2.43604872,2496.2,2496.1,0.80666962]
[1749234105268,2.43604872,2496.2,2496.1,0.00600962]
[1749234105969,3.70014872,2496.2,2496.1,0.00600962]
[1749234106175,0.80079,2495.8,2495.7,0.80078]
[1749234106675,0.80083,2495.7,2495.6,0.80079]
[1749234106967,0.80086,2495.6,2495.5,0.80082]
[1749234109376,0.80088,2495.4,2495.3,0.80490638]
[1749234109582,0.80088,2495.4,2495.3,0.00400638]
[1749234109770,1.77725695,2495.4,2495.3,0.00400638]
[1749234110071,0.80101,2495.0,2494.9,1.49592]
[1749234110275,0.97651,2495.1,2494.6,4.00892]
[1749234110477,3.36345,2494.9,2494.3,3.2078]
[1749234110668,0.80115,2494.6,2494.5,0.80115]
[1749234110868,0.8012,2494.5,2494.4,0.80119]
[1749234111063,0.80116,2494.6,2494.5,0.80116]
[1749234111272,0.80116,2494.6,2494.5,0.80115]
[1749234111672,0.80119,2494.5,2494.4,0.80118]
[1749234112173,0.80121,2494.4,2494.3,3.2078]
[1749234112380,0.80121,2494.4,2494.3,4.00904]
[1749234112775,3.2078,2494.4,2494.0,1.3904]
[1749234112978,0.80126,2494.3,2494.2,0.80126]
[1749234113277,0.8013,2494.2,2494.1,0.80128]
[1749234113473,4.00903,2494.4,2494.0,1.3904]
[1749234113670,0.80128,2494.2,2494.1,0.80127]
[1749234113883,0.80132,2494.1,2494.0,0.80131]
[1749234114380,0.80137,2493.9,2493.8,3.2078]
[1749234114769,1.3303,2494.0,2493.8,3.2078]
[1749234114971,0.80137,2493.9,2493.8,3.2078]
[1749234115784,6.0625,2494.2,2493.8,4.00918]
[1749234116081,0.80137,2493.9,2493.8,4.00918]
[1749234116682,0.80137,2493.9,2493.8,3.2078]
[1749234116884,0.80147,2493.7,2493.6,0.80145]
[1749234117076,3.2078,2493.9,2493.3,3.98488]
[1749234117280,3.2078,2493.9,2493.8,0.8014]
[1749234117779,4.00917,2493.9,2493.8,0.8014]
[1749234118283,0.80143,2493.8,2493.7,0.80142]
[1749234118782,3.2078,2493.9,2493.6,0.80144]
[1749234118783,0.80145,2493.7,2493.6,0.80144]
[1749234118978,0.80151,2493.5,2493.4,0.80153]
[1749234119173,2.0036,2493.7,2493.2,3.8486]
[1749234119388,2.0036,2493.7,2491.5,43.2898887]
[1749234119389,3.2078,2493.3,2492.6,3.8798]
[1749234119676,0.00600962,2493.2,2493.1,0.80162]
[1749234119882,0.00600962,2493.2,2493.1,1.45852]
[1749234120277,0.80759962,2493.2,2493.1,1.45852]
[1749234120476,0.80759962,2493.2,2493.1,0.80162]
[1749234120784,0.80168,2493.0,2492.9,0.80166]
[1749234121079,0.80164,2493.1,2493.0,0.80162]
[1749234121376,0.80164,2493.1,2492.3,1.3291]
[1749234121377,0.00600962,2493.2,2492.2,2.00478]
[1749234121571,4.77900962,2493.2,2493.1,0.80162]
[1749234121774,0.00600962,2493.2,2493.1,0.80162]
[1749234122182,0.00600962,2493.2,2493.1,6.90372]
[1749234122371,4.773,2493.8,2493.1,6.7759]
[1749234122578,3.2078,2494.1,2494.0,0.80133]
[1749234123281,5.4147,2494.3,2494.2,0.80127]
[1749234123482,4.773,2494.3,2494.2,0.80127]
[1749234123683,8.78304,2494.4,2494.3,0.80124]
[1749234123978,5.57523,2494.4,2494.3,0.80124]
[1749234124488,0.80125,2494.3,2494.2,0.80124]
[1749234124975,5.57523,2494.4,2494.3,0.80124]
[1749234125173,0.00600962,2494.5,2494.4,0.80121]
[1749234125579,0.80717962,2494.5,2494.4,0.80121]
[1749234126079,0.00600962,2494.5,2494.4,0.80121]
[1749234126579,5.00600962,2494.5,2494.0,0.00600962]
[1749234126779,0.8013,2494.1,2494.0,0.00600962]
[1749234126983,5.5753,2494.1,2494.0,0.00600962]
[1749234128687,5.5753,2494.1,2494.0,0.80733962]
[1749234128883,4.774,2494.1,2494.0,0.80733962]
[1749234129084,5.5753,2494.1,2494.0,0.80733962]
[1749234129280,5.5753,2494.1,2494.0,0.00600962]
[1749234130687,0.8013,2494.1,2494.0,0.00600962]
[1749234131994,0.80122,2494.4,2494.0,0.00600962]
[1749234132186,4.78000962,2494.5,2494.1,0.80127]
[1749234132387,0.80127,2494.3,2494.2,0.80125]
[1749234132692,0.80127,2494.2,2494.1,2.08328]
[1749234133992,0.80127,2494.2,2494.1,1.282]
[1749234134388,0.80127,2494.2,2494.1,2.7234]
[1749234134692,0.8013,2494.1,2494.0,0.00600962]
[1749234134889,7.82634511,2494.1,2494.0,0.00600962]
[1749234135187,0.80149,2493.5,2493.4,1.3366]
[1749234135694,0.80159,2493.2,2493.1,4.00941]
[1749234136196,0.80159,2493.2,2493.1,0.8016]
[1749234136392,0.80162,2493.1,2493.0,2.15344]
[1749234136983,0.80162,2493.1,2493.0,1.3518]
[1749234137190,0.80166,2493.0,2492.9,1.3706]
[1749234137388,0.80172,2492.8,2492.7,0.80173]
[1749234137690,0.80168,2493.0,2492.9,0.80167]
[1749234137890,1.77410294,2493.0,2492.9,0.80167]
[1749234138090,0.97242294,2493.0,2492.9,0.80167]
[1749234138690,1.77408294,2493.0,2492.9,0.80167]
[1749234138989,0.97242294,2493.0,2492.8,0.8017]
[1749234139198,0.80167,2493.0,2492.9,0.80165]
[1749234139492,0.80172,2492.8,2492.7,2.07732]
[1749234139794,1.77388345,2492.8,2492.7,0.80172]
[1749234140291,0.80178,2492.6,2492.5,1.4743]
[1749234140493,0.00600962,2493.2,2492.6,0.80178]
[1749234140800,0.00600962,2493.2,2493.0,0.80166]
[1749234140801,0.97210855,2493.1,2493.0,0.80166]
[1749234141390,0.00600962,2493.2,2493.1,0.80162]
[1749234141595,0.97408082,2493.2,2493.1,0.80162]
[1749234145494,0.97408082,2493.2,2493.1,4.00942]
[1749234147895,0.97408082,2493.2,2493.1,9.00942]
[1749234148096,8.0468,2493.9,2493.8,0.8014]
[1749234148297,4.17481106,2493.9,2493.8,0.8014]
[1749234148693,0.96701106,2493.9,2493.8,0.8014]
[1749234149197,0.96701106,2493.9,2493.8,2.1843]
[1749234149593,0.00600962,2494.1,2494.0,0.80133]
[1749234149796,0.97279906,2494.1,2494.0,0.80133]
[1749234149991,1.77409906,2494.1,2494.0,0.80133]
[1749234150193,0.97279906,2494.1,2494.0,0.80133]
[1749234151198,0.00600962,2494.1,2494.0,0.80133]
[1749234151493,0.00600962,2494.1,2494.0,4.00913]
[1749234152296,0.6899,2494.7,2494.6,0.80114]
[1749234152498,1.65634918,2494.7,2494.1,1.2932]
[1749234152799,0.80122,2494.4,2494.3,0.80121]
[1749234153097,1.76766918,2494.4,2494.3,0.80121]
[1749234153402,0.96644918,2494.4,2494.3,0.80121]
[1749234153595,0.00600962,2494.6,2494.4,0.80121]
[1749234153596,0.80119,2494.5,2494.4,0.80121]
[1749234153900,1.77359556,2494.6,2494.5,0.80117]
[1749234154095,1.77478755,2494.6,2494.5,0.80117]
[1749234154701,0.80119,2494.5,2494.4,0.80118]
[1749234154894,1.76881793,2494.5,2494.4,0.80118]
[1749234155094,0.96762793,2494.5,2494.4,0.80118]
[1749234155601,1.76879793,2494.5,2494.4,0.80118]
[1749234155802,0.96762793,2494.5,2494.4,0.80118]
[1749234156404,0.00600962,2494.6,2494.5,0.80117]
[1749234157505,0.97364651,2494.6,2494.5,0.80117]
[1749234158003,0.00600962,2494.6,2494.5,2.19517]
[1749234158205,1.7723931,2494.6,2494.5,0.80117]
[1749234158597,0.9712531,2494.6,2494.5,0.80117]
[1749234159306,0.00600962,2494.6,2494.5,2.15997]
[1749234160799,0.80714962,2494.6,2494.5,2.15997]
[1749234160998,0.00600962,2494.6,2494.5,2.15997]
[1749234163107,0.80099,2495.1,2495.0,0.80098]
[1749234163407,5.63798,2495.2,2495.1,0.80098]
[1749234163612,6.60165339,2495.2,2495.1,0.80098]
[1749234164003,0.96367339,2495.2,2495.1,0.80098]
[1749234164307,0.00600962,2495.4,2495.3,0.80092]
[1749234164504,0.00600962,2495.4,2495.3,4.00872]
[1749234164999,0.00600962,2495.4,2495.3,4.65112]
[1749234165202,0.00600962,2495.4,2495.3,5.99182]
[1749234168303,0.80067,2496.1,2496.0,0.80069]
[1749234168505,0.87205351,2496.0,2495.9,0.8007]
[1749234168700,0.07133351,2496.0,2495.9,0.8007]
[1749234168903,0.87202351,2496.0,2495.9,0.8007]
[1749234169509,0.80069,2496.0,2495.9,0.8007]
[1749234169812,3.90980962,2496.2,2495.8,2.0019]
[1749234169997,4.71045962,2496.2,2496.1,0.80066]
[1749234170400,0.80068,2496.1,2496.0,0.80066]
[1749234174609,0.80072,2496.0,2495.9,0.8007]
[1749234174907,0.80076,2495.8,2495.7,0.80679962]
[1749234176811,0.80074,2495.9,2495.8,0.80076]
[1749234177204,3.2078,2496.1,2495.9,0.80069]
[1749234177410,3.2078,2496.1,2495.7,2.00795962]
[1749234177411,4.00848,2496.1,2496.0,0.80069]
[1749234177709,0.80075,2495.9,2495.8,0.80072]
[1749234177910,1.76870214,2495.9,2495.8,0.80072]
[1749234178111,0.80071,2496.0,2495.9,0.80072]
[1749234178406,1.768657,2496.0,2495.9,0.80072]
[1749234179714,1.76902862,2496.0,2495.9,0.80072]
[1749234180912,0.80076,2495.9,2495.8,0.80073]
[1749234181110,1.76907862,2495.9,2495.8,0.80073]
[1749234181716,0.96831862,2495.9,2495.8,0.80073]
[1749234182013,0.70200962,2496.2,2495.8,2.00186]
[1749234182216,0.96880245,2496.1,2496.0,0.80069]
[1749234182615,0.96880245,2496.1,2496.0,2.17619]
[1749234182809,1.76946245,2496.1,2496.0,2.17619]
[1749234183115,1.76954982,2496.1,2496.0,0.80069]
[1749234183321,0.80069,2496.0,2495.9,3.2078]
[1749234183513,1.76957982,2496.0,2495.9,4.00852]
[1749234184524,0.96888982,2496.0,2495.7,0.67940962]
[1749234184721,0.80076,2495.8,2495.7,0.00600962]
[1749234184907,1.76964982,2495.8,2495.7,0.00600962]
[1749234185317,1.76964982,2495.8,2495.7,0.80678962]
[1749234186723,0.96888982,2495.8,2495.7,0.80678962]
[1749234186923,1.76964982,2495.8,2495.7,0.80678962]
[1749234187218,1.76964982,2495.8,2495.7,0.00600962]
[1749234187623,1.76964982,2495.8,2495.7,0.80679962]
[1749234187624,3.15374982,2495.8,2495.7,0.80679962]
[1749234188224,1.76964982,2495.8,2495.7,0.80679962]
[1749234189328,3.05024982,2495.8,2495.7,0.80679962]
[1749234189934,1.76964982,2495.8,2495.7,0.80679962]
[1749234190231,1.76964982,2495.8,2495.7,0.00600962]
[1749234190428,0.80098,2495.2,2495.0,3.2078]
[1749234190630,0.80094,2495.3,2495.2,0.80089]
[1749234190929,0.97223442,2495.4,2495.1,2.00244]
[1749234191133,0.97223442,2495.3,2495.2,0.80095]
[1749234191439,4.809,2495.6,2495.5,0.80085]
[1749234191728,1.45269,2495.7,2495.6,0.80082]
[1749234192032,2.42549576,2495.7,2495.6,0.80082]
[1749234193020,1.62470576,2495.7,2495.6,0.80082]
[1749234193829,0.97280576,2495.7,2495.6,0.80082]
[1749234194531,0.07133351,2495.9,2495.8,0.80076]
[1749234195032,0.07133351,2495.9,2495.8,2.05866]
[1749234197438,0.07133351,2495.9,2495.8,6.86766]
[1749234197839,0.07133351,2495.9,2495.8,2.05866]
[1749234198939,0.00600962,2496.2,2496.1,0.80066]
[1749234200938,0.80663962,2496.2,2496.1,0.80066]
[1749234201544,0.00600962,2496.2,2496.1,0.80066]
[1749234201742,0.80663962,2496.2,2496.1,0.80066]
[1749234206642,1.77653345,2496.2,2496.1,0.80066]
[1749234208352,0.80069,2496.1,2496.0,0.80068]
[1749234208555,1.77058383,2496.1,2496.0,0.80068]
[1749234208752,0.80069,2496.0,2495.9,3.2078]
[1749234208945,0.80076,2495.9,2495.8,0.80075]
[1749234209245,0.80076,2495.8,2495.7,1.43038]
[1749234209546,0.80076,2495.8,2495.6,0.80079]
[1749234209547,0.80079,2495.7,2495.6,0.80079]
[1749234209750,1.77068383,2495.7,2495.6,0.80079]
[1749234210043,0.96989383,2495.7,2495.6,0.80079]
[1749234212054,0.80085,2495.6,2495.4,2.5981]
[1749234212251,1.77074383,2495.5,2495.4,2.12154]
[1749234212444,0.96989383,2495.5,2495.4,3.49454]
[1749234214653,1.77074383,2495.5,2495.4,3.49454]
[1749234214948,0.80098,2495.1,2494.6,3.2078]
[1749234215158,0.80098,2495.1,2494.7,1.48189]
[1749234215159,1.77087383,2495.1,2494.7,1.48189]
[1749234215448,1.77087383,2495.1,2494.7,0.6808]
[1749234215746,1.77087383,2495.1,2494.8,0.80106]
[1749234215956,3.14637383,2495.1,2494.8,0.80105]
[1749234216145,3.14637383,2495.1,2494.5,3.93473]
[1749234216146,0.80111,2494.7,2494.5,1.46905]
[1749234216342,2.00265,2494.9,2494.5,0.80115]
[1749234216343,0.96989383,2494.6,2494.5,0.80115]
[1749234217452,0.80114,2494.6,2494.5,0.80115]
[1749234217653,0.8012,2494.5,2494.4,0.80118]
[1749234218257,0.80121,2494.4,2494.3,3.21380962]
[1749234218457,0.80121,2494.4,2494.3,4.01504962]
[1749234218849,1.76708008,2494.4,2494.3,3.21380962]
[1749234219046,0.8014,2493.9,2493.7,3.8995]
[1749234219351,0.80135,2494.0,2493.9,0.80135]
[1749234220653,2.1864,2494.1,2494.0,0.80133]
[1749234221456,0.80135,2494.0,2493.9,0.80134]
[1749234222859,2.18642,2494.1,2494.0,0.80133]
[1749234223963,6.96642,2494.1,2494.0,0.80133]
[1749234224665,0.691,2494.1,2494.0,0.80133]
[1749234225067,1.4923,2494.1,2494.0,0.80133]
[1749234225966,0.691,2494.1,2494.0,0.80133]
[1749234226266,0.6728,2494.4,2494.0,2.00334]
[1749234226467,0.6407,2494.6,2494.5,0.80117]
[1749234226663,1.44187,2494.6,2494.5,0.80117]
[1749234227067,5.4576,2494.7,2494.6,0.80114]
[1749234227365,4.781,2494.7,2494.6,0.80114]
[1749234228086,4.781,2494.7,2494.3,1.2794]
[1749234228772,0.80118,2494.6,2494.5,0.80115]
[1749234229269,0.80121,2494.5,2494.4,0.80119]
[1749234229964,0.80116,2494.6,2494.5,0.80114]
[1749234231871,0.80116,2494.6,2494.3,1.2794]
[1749234231872,0.80121,2494.5,2494.4,0.80119]
[1749234234270,0.80116,2494.6,2494.5,0.80114]
[1749234234671,5.58214,2494.7,2494.6,0.80114]
[1749234234871,0.80117,2494.6,2494.5,0.80115]
[1749234235470,0.80117,2494.5,2494.4,2.81878]
[1749234236467,4.781,2494.7,2494.4,4.02061]
[1749234236665,5.58213,2494.7,2494.6,0.80114]
[1749234236865,0.80113,2494.7,2494.6,0.80114]
[1749234237070,4.70359,2495.1,2494.6,0.80114]
[1749234237071,3.2078,2495.5,2495.2,0.80091]
[1749234237273,0.80097,2495.2,2495.1,0.80094]
[1749234237470,0.80094,2495.3,2495.2,0.80091]
[1749234238276,0.80098,2495.2,2495.1,0.80095]
[1749234240581,0.80098,2495.1,2495.0,0.00600962]
[1749234241178,1.76366209,2495.1,2495.0,0.00600962]
[1749234241374,3.03586209,2495.1,2495.0,0.00600962]
[1749234241572,1.76366209,2495.1,2495.0,0.80701962]
[1749234241777,0.96268209,2495.1,2495.0,0.80701962]
[1749234242079,8.66430962,2495.5,2495.4,0.80088]
[1749234242270,9.62895844,2495.5,2495.4,0.80088]
[1749234242876,10.42980844,2495.5,2495.2,0.6548]
[1749234243175,0.96464882,2495.4,2495.3,0.80089]
[1749234244882,0.80092,2495.3,2495.2,1.45573]
[1749234245090,1.76556882,2495.3,2495.2,1.45573]
[1749234245381,0.80098,2495.2,2495.1,0.80096]
[1749234245582,0.80098,2495.2,2495.0,0.00600962]
[1749234245583,0.80095,2495.3,2495.2,0.80095]
[1749234245781,1.76713557,2495.3,2495.2,0.80095]
[1749234247173,0.96618557,2495.3,2495.0,0.00600962]
[1749234247375,0.80098,2495.1,2495.0,0.00600962]
[1749234247684,1.76697299,2495.1,2495.0,0.00600962]